bitfinex/quotes_ETHUSD_20251028
["timestamp","ask_amount","ask_price","bid_price","bid_amount"]
[1761658512768,0.28073423,4137.9,4137.8,4.58824719]
[1761658512970,0.28073423,4137.9,4137.8,0.1208]
[1761658513193,0.28073423,4137.9,4137.8,0.25816886]
[1761658513563,0.28073423,4137.9,4137.8,0.1208]
[1761658515363,3.37661902,4137.9,4137.8,0.1208]
[1761658515589,2.4168016,4137.7,4137.6,0.002]
[1761658515974,2.8807016,4137.7,4137.6,0.002]
[1761658517874,2.4168016,4137.7,4137.6,0.002]
[1761658518409,2.8807016,4137.7,4137.6,0.002]
[1761658519288,2.4168016,4137.7,4137.6,0.002]
[1761658519475,0.4639,4137.7,4137.6,0.1228]
[1761658519881,2.8807016,4137.7,4137.6,0.1228]
[1761658520374,2.8807016,4137.7,4137.6,0.002]
[1761658520975,1.74924779,4137.9,4137.6,0.002]
[1761658521182,2.26939265,4137.9,4137.6,0.002]
[1761658521382,2.88064319,4137.8,4137.7,0.1208]
[1761658521602,2.03000486,4137.9,4137.7,0.1208]
[1761658521934,1.91123484,4137.9,4137.7,0.1208]
[1761658522084,1.97000254,4137.9,4137.8,0.1208]
[1761658522279,1.99727338,4137.9,4137.8,0.1208]
[1761658522480,2.04153227,4137.9,4137.8,0.1208]
[1761658522698,2.07221269,4137.9,4137.8,0.1208]
[1761658522903,4.95279748,4137.9,4137.8,0.1208]
[1761658523418,2.07221269,4137.9,4137.8,0.1208]
[1761658524207,2.07221269,4137.9,4137.8,0.37477082]
[1761658524584,2.07221269,4137.9,4137.8,0.1208]
[1761658525622,2.07221269,4137.9,4137.6,0.002]
[1761658525924,2.53611269,4137.9,4137.6,0.002]
[1761658526120,2.07221269,4137.9,4137.6,0.002]
[1761658527837,2.53611269,4137.9,4137.6,0.002]
[1761658528133,2.07221269,4137.9,4137.6,0.002]
[1761658528720,0.4639,4137.8,4137.6,0.002]
[1761658529038,2.07221269,4137.9,4137.6,0.002]
[1761658529809,2.07221269,4137.9,4137.6,0.24890294]
[1761658530310,2.07221269,4137.9,4137.6,0.002]
[1761658530517,2.07221269,4137.9,4137.7,0.09]
[1761658530813,2.07221269,4137.9,4137.8,4.37744719]
[1761658531018,2.07221269,4137.9,4137.8,4.46744719]
[1761658532502,2.07221269,4137.9,4137.8,2.41674319]
[1761658532819,2.07221269,4137.9,4137.8,3.28281676]
[1761658535740,2.07141269,4137.9,4137.8,3.40361676]
[1761658536129,2.07141269,4137.9,4137.8,2.90811276]
[1761658536825,2.07141269,4137.9,4137.8,0.49136957]
[1761658537031,2.07141269,4137.9,4137.8,0.1208]
[1761658537762,2.51131269,4137.9,4137.8,0.1208]
[1761658537936,2.07141269,4137.9,4137.8,0.1208]
[1761658538741,2.51131269,4137.9,4137.8,0.1208]
[1761658539145,2.07141269,4137.9,4137.8,0.1208]
[1761658540617,4.92799748,4137.9,4137.8,0.1208]
[1761658540825,2.41674358,4137.8,4137.6,0.002]
[1761658541022,2.4168016,4137.7,4137.6,0.002]
[1761658541242,2.8567016,4137.7,4137.6,0.002]
[1761658542059,4.48809837,4137.9,4137.6,0.002]
[1761658542060,2.07141269,4137.9,4137.6,0.002]
[1761658542759,0.4399,4137.8,4137.6,0.002]
[1761658543275,2.85665334,4137.8,4137.6,0.002]
[1761658543434,0.4399,4137.8,4137.6,0.002]
[1761658543774,2.07141269,4137.9,4137.6,0.002]
[1761658544147,2.07141269,4137.9,4137.7,0.24688772]
[1761658544732,2.85665319,4137.8,4137.6,0.002]
[1761658544941,0.4399,4137.7,4137.6,0.002]
[1761658546274,2.8567016,4137.7,4137.6,0.002]
[1761658547874,3.2622056,4137.7,4137.6,0.002]
[1761658548029,0.405504,4137.4,4137.1,1e-08]
[1761658548233,2.82259768,4137.2,4137.1,1e-08]
[1761658548472,4.504704,4137.2,4135.1,0.1]
[1761658548676,0.405504,4136.5,4135.1,0.01]
[1761658548973,0.2287,4135.2,4135.1,0.01]
[1761658549337,2.64696272,4135.2,4135.1,0.01]
[1761658549538,3.08686272,4135.2,4135.1,0.01]
[1761658549736,0.6686,4135.2,4135.1,0.01]
[1761658550138,0.2287,4135.5,4135.1,0.01]
[1761658550383,2.41780264,4136.0,4135.1,0.01]
[1761658550537,2.41768211,4136.2,4135.1,0.01]
[1761658550860,0.1208,4136.3,4135.6,0.1208]
[1761658551174,2.41755375,4136.5,4136.1,0.1208]
[1761658551347,0.4399,4136.6,4135.4,2.41811568]
[1761658551537,2.41744427,4136.6,4136.5,0.1208]
[1761658551742,2.85734427,4136.6,4136.5,0.1208]
[1761658552066,0.4399,4136.6,4136.5,0.1208]
[1761658552271,2.85734427,4136.6,4136.5,0.1208]
[1761658552470,2.41753335,4136.5,4135.1,1.5672]
[1761658552644,0.4399,4136.6,4135.1,1.5672]
[1761658552645,0.4399,4136.6,4136.2,0.1208]
[1761658552850,0.2287,4136.8,4135.3,1.5552]
[1761658553052,0.2287,4136.8,4136.4,0.1208]
[1761658553053,2.41738583,4136.7,4136.4,0.1208]
[1761658553252,0.2287,4136.8,4136.4,0.1208]
[1761658553680,2.85728636,4136.7,4136.4,0.1208]
[1761658553891,2.8573096,4136.7,4136.4,0.1208]
[1761658554089,0.4399,4136.6,4136.4,0.1208]
[1761658554778,2.64583599,4137.2,4136.4,0.1208]
[1761658555083,0.4399,4137.1,4136.9,0.1208]
[1761658555441,2.41721053,4137.0,4136.9,0.1208]
[1761658555983,2.41755779,4136.5,4135.0,1.5552]
[1761658556278,2.41762849,4136.3,4135.3,2.41816113]
[1761658556442,0.2287,4136.9,4135.3,2.41818371]
[1761658556653,0.2287,4136.9,4135.1,0.012]
[1761658556654,2.41738583,4136.7,4135.1,0.012]
[1761658556853,0.4399,4136.8,4135.1,0.012]
[1761658557087,2.41750271,4136.5,4135.1,0.012]
[1761658557287,2.41813753,4135.5,4135.1,0.012]
[1761658557473,0.4399,4135.4,4135.1,0.012]
[1761658557675,2.41826169,4135.3,4135.1,0.012]
[1761658557874,0.4399,4135.4,4135.1,0.012]
[1761658558078,2.41826272,4135.2,4135.1,0.012]
[1761658558471,2.85816272,4135.2,4135.1,0.012]
[1761658559591,4.81886672,4135.2,4135.1,0.012]
[1761658559797,4.81886672,4135.2,4134.6,0.002]
[1761658559798,3.9735212,4135.1,4134.6,0.002]
[1761658560089,2.41867214,4134.5,4134.4,0.05]
[1761658560336,2.41787214,4134.5,4134.4,0.05]
[1761658560467,2.85777214,4134.5,4134.4,0.05]
[1761658562169,3.26327614,4134.5,4134.4,0.05]
[1761658562679,2.85777214,4134.5,4134.4,0.05]
[1761658563589,3.26327614,4134.5,4134.4,0.05]
[1761658563787,4.81847614,4134.5,4134.4,0.05]
[1761658565013,0.4399,4134.5,4134.4,0.05]
[1761658565303,2.85857214,4134.5,4134.4,0.05]
[1761658565866,2.41867214,4134.5,4134.4,0.05]
[1761658566071,0.2287,4134.7,4134.4,0.05]
[1761658566274,2.41867214,4134.5,4134.4,0.05]
[1761658566786,2.87227214,4134.5,4134.4,0.05]
[1761658566987,0.4536,4134.5,4134.4,0.05]
[1761658567226,2.87227214,4134.5,4134.4,0.05]
[1761658568519,0.1208,4134.5,4134.4,0.05]
[1761658568820,2.87717214,4134.5,4134.4,0.05]
[1761658569024,17.41040467,4134.5,4134.1,0.01]
[1761658569322,0.2287,4134.7,4133.1,0.01]
[1761658569323,2.41943288,4133.2,4133.1,0.01]
[1761658570020,0.2332,4133.5,4133.1,0.01]
[1761658570225,2.41943288,4133.2,4133.1,0.01]
[1761658570821,2.6524624,4133.5,4133.1,0.01]
[1761658571023,2.41937243,4133.4,4133.1,0.01]
[1761658571228,0.2332,4133.5,4133.1,0.01]
[1761658571425,2.41943288,4133.2,4133.1,0.01]
[1761658571636,2.41939989,4133.3,4133.1,0.01]
[1761658571840,2.41914023,4133.7,4133.1,0.01]
[1761658571999,0.6917,4133.8,4133.1,0.01]
[1761658572331,2.41943288,4133.2,4133.1,0.01]
[1761658573328,2.87793288,4133.2,4133.1,0.01]
[1761658574236,3.28343688,4133.2,4133.1,0.01]
[1761658576304,4.43313288,4133.2,4133.1,0.01]
[1761658576630,2.7772,4133.8,4133.1,0.01]
[1761658576631,0.4585,4133.6,4133.1,0.01]
[1761658576943,0.4585,4133.7,4133.1,0.01]
[1761658577144,2.41943288,4133.2,4133.1,0.01]
[1761658578045,2.87793288,4133.2,4133.1,0.01]
[1761658578540,2.41943288,4133.2,4133.1,0.01]
[1761658579043,2.42001839,4132.2,4132.1,1e-08]
[1761658579268,4.43371839,4132.2,4132.1,1e-08]
[1761658579865,3.97521839,4132.2,4132.1,1e-08]
[1761658580263,4.43371839,4132.2,4132.1,1e-08]
[1761658580829,2.42001839,4132.2,4132.1,1e-08]
[1761658581067,0.2332,4132.8,4132.1,1e-08]
[1761658581365,2.41984745,4132.5,4132.1,1e-08]
[1761658581732,2.42001839,4132.2,4132.1,1e-08]
[1761658582162,2.41990938,4132.4,4132.1,1e-08]
[1761658582533,2.65232092,4133.8,4132.1,0.10800001]
[1761658582534,2.4196631,4132.9,4132.1,0.10800001]
[1761658582832,2.41952616,4133.1,4132.1,0.10800001]
[1761658583038,2.41925728,4133.5,4132.1,0.3608251]
[1761658583039,2.41971623,4132.8,4132.1,0.3608251]
[1761658583248,3.97445728,4133.5,4132.1,0.3608251]
[1761658583249,2.41973691,4132.7,4132.1,0.3608251]
[1761658583590,2.0137,4133.5,4132.1,0.10800001]
[1761658583591,0.4585,4133.5,4132.1,0.10800001]
[1761658583727,0.4585,4134.0,4132.1,0.10800001]
[1761658583933,0.4585,4133.7,4132.1,1e-08]
[1761658584132,2.41974669,4132.7,4132.1,1e-08]
[1761658584576,0.4585,4133.1,4132.1,1e-08]
[1761658584885,2.41956571,4133.0,4132.2,0.24201769]
[1761658585028,2.41925728,4133.5,4132.2,0.24201769]
[1761658585231,2.41925728,4133.5,4132.1,1e-08]
[1761658585232,2.41994556,4132.4,4132.1,1e-08]
[1761658585433,2.41978577,4132.6,4132.1,1e-08]
[1761658586136,0.2332,4132.9,4132.1,1e-08]
[1761658586345,2.4198512,4132.5,4132.1,1e-08]
[1761658586544,0.2332,4132.9,4132.1,1e-08]
[1761658586545,2.41994672,4132.4,4132.1,1e-08]
[1761658586767,2.41996966,4132.3,4132.1,1e-08]
[1761658586981,2.41974106,4132.7,4132.1,1e-08]
[1761658587190,2.65282431,4132.9,4132.1,1e-08]
[1761658587576,2.4197897,4132.6,4132.1,1e-08]
[1761658588160,2.41968525,4132.8,4132.1,1e-08]
[1761658588493,2.41983724,4132.6,4132.1,1e-08]
[1761658588668,2.41985455,4132.5,4132.1,1e-08]
[1761658588870,0.1208,4133.3,4132.5,0.1208]
[1761658589072,0.2332,4133.8,4132.1,0.00200001]
[1761658589073,2.41914023,4133.7,4132.2,0.108]
[1761658589261,2.41914023,4133.7,4132.3,0.25301228]
[1761658589262,2.41960061,4133.0,4132.3,0.25301228]
[1761658589463,2.41943502,4133.2,4132.3,2.4199136]
[1761658589795,0.001,4133.4,4132.1,0.11000001]
[1761658590000,0.001,4133.4,4132.1,0.00200001]
[1761658590001,0.4585,4133.3,4132.1,0.00200001]
[1761658590572,2.41995882,4132.4,4132.1,0.00200001]
[1761658590787,0.4585,4133.3,4132.1,0.00200001]
[1761658591098,2.41960443,4133.0,4132.1,2.42205968]
[1761658591262,0.4585,4133.3,4132.1,2.42205968]
[1761658591263,0.4585,4133.3,4132.1,0.65255062]
[1761658591463,2.41979399,4132.6,4132.1,0.65255062]
[1761658591664,2.41971043,4132.8,4132.1,0.00200001]
[1761658591897,2.41962353,4132.9,4132.1,0.00200001]
[1761658592088,2.41966888,4132.8,4132.1,0.00200001]
[1761658592400,2.41968495,4132.8,4132.1,0.00200001]
[1761658592608,0.4595,4133.4,4132.1,0.00200001]
[1761658592905,0.001,4133.4,4132.2,0.108]
[1761658593076,0.001,4133.4,4132.5,2.41983726]
[1761658593283,0.001,4133.4,4132.6,0.24198373]
[1761658593797,2.41937434,4133.3,4132.6,0.24198373]
[1761658594003,0.001,4133.4,4132.6,0.24198373]
[1761658594206,2.41939608,4133.3,4132.4,2.4198491]
[1761658594611,0.001,4133.4,4132.2,0.108]
[1761658594779,0.001,4133.4,4132.6,2.4197615]
[1761658594981,2.42032846,4133.4,4132.4,2.41988552]
[1761658595279,2.42032846,4133.4,4132.1,0.00200001]
[1761658595280,2.41944752,4133.2,4132.5,0.49479033]
[1761658595600,0.001,4133.4,4132.1,1.55720001]
[1761658595802,0.001,4133.4,4132.7,2.41970652]
[1761658596113,0.001,4133.4,4132.8,1.68739667]
[1761658596278,0.001,4133.4,4133.2,16.95264649]
[1761658596879,0.001,4133.4,4133.2,14.64123253]
[1761658597111,0.001,4133.4,4133.3,1.46412325]
[1761658597512,0.001,4133.4,4133.3,2.41937434]
[1761658597811,0.001,4133.4,4133.3,2.52737434]
[1761658598002,0.001,4133.4,4133.3,18.61580687]
[1761658599080,0.001,4133.4,4133.3,1.676]
[1761658599490,0.001,4133.4,4133.3,1.784]
[1761658599690,0.001,4133.4,4133.3,4.38177434]
[1761658602759,0.001,4133.4,4133.3,4.40596808]
[1761658602895,0.001,4133.4,4133.3,4.78727834]
[1761658603097,0.001,4133.4,4133.3,4.81147208]
[1761658603410,0.001,4134.5,4134.4,2.41873065]
[1761658603597,0.001,4134.5,4134.4,4.98399021]
[1761658603802,0.001,4135.0,4134.9,2.82394217]
[1761658603999,0.001,4135.0,4134.9,17.61015908]
[1761658604194,0.001,4135.0,4134.9,17.4651747]
[1761658605134,0.001,4135.0,4134.8,1.5552]
[1761658605323,0.001,4135.0,4134.4,0.48375556]
[1761658605528,0.001,4135.0,4134.5,1.78681881]
[1761658605898,0.001,4135.0,4134.7,1.5552]
[1761658606236,0.001,4135.0,4134.6,1.6632]
[1761658606738,0.001,4135.0,4134.9,2.41843817]
[1761658607200,0.001,4135.0,4134.9,4.48714217]
[1761658607402,0.001,4135.0,4134.9,6.78897358]
[1761658609301,0.0002,4135.0,4134.9,6.78897358]
[1761658609706,0.001,4135.5,4135.4,4.37884976]
[1761658609940,0.01,4135.8,4135.7,2.41797035]
[1761658610099,0.01,4135.8,4135.7,2.44215005]
[1761658610305,0.001,4135.9,4135.8,2.41791189]
[1761658610504,0.001,4135.9,4135.8,18.63852353]
[1761658610706,0.001,4135.9,4135.8,18.61434442]
[1761658610901,0.01,4136.8,4135.8,18.61434442]
[1761658610902,0.01,4136.8,4136.7,4.37808983]
[1761658611142,0.01,4136.8,4136.7,1.5552]
[1761658611444,0.01,4136.8,4136.7,4.3698608]
[1761658611603,0.01,4136.8,4136.7,1.95247497]
[1761658611803,0.01,4136.8,4136.7,1.5552]
[1761658613014,0.01,4136.8,4135.7,2.41797035]
[1761658613240,0.01,4136.8,4135.8,1.960704]
[1761658613557,0.01,4136.8,4135.8,1.5552]
[1761658613850,2.41746027,4136.6,4135.7,1.5552]
[1761658614154,0.4409,4136.7,4135.8,1.8506511]
[1761658614452,0.01,4136.8,4136.5,0.1208]
[1761658615106,0.01,4136.8,4136.5,0.2288]
[1761658615304,0.01,4136.8,4136.5,0.1208]
[1761658615614,0.01,4136.8,4136.6,1.5552]
[1761658615810,0.01,4136.8,4136.7,3.779]
[1761658617388,0.01,4136.8,4136.7,7.45616583]
[1761658618098,0.01,4136.8,4136.7,4.93078]
[1761658618394,0.01,4136.8,4136.7,3.8998]
[1761658620769,0.01,4136.8,4136.7,6.19638583]
[1761658621096,0.01,4136.8,4136.7,6.42518583]
[1761658621302,0.01,4136.8,4136.7,6.31718583]
[1761658621448,0.01,4136.8,4136.7,7.98038583]
[1761658621644,0.05,4137.4,4137.1,2.4171468]
[1761658621900,0.05,4137.4,4137.3,2.41703526]
[1761658622061,0.05,4137.4,4137.3,6.30683526]
[1761658622463,0.05,4137.4,4137.3,3.8898]
[1761658622850,0.05,4137.4,4137.3,6.30683526]
[1761658623360,0.05,4137.4,4137.3,3.8898]
[1761658623672,0.05,4137.4,4137.3,6.80602013]
[1761658623979,0.05,4137.4,4137.3,4.36481452]
[1761658624184,0.05,4137.4,4137.3,3.8898]
[1761658624403,0.05,4137.4,4137.3,6.30683526]
[1761658624602,0.05,4137.4,4137.3,3.8898]
[1761658626305,0.05,4137.4,4137.3,6.30683526]
[1761658626682,0.05,4137.4,4137.3,7.86203526]
[1761658626989,0.01,4137.8,4137.3,7.86203526]
[1761658626990,0.01,4137.8,4137.7,2.8223056]
[1761658627302,0.01,4137.8,4137.7,19.16370614]
[1761658627503,0.01,4137.8,4137.7,19.13953813]
[1761658627802,0.01,4137.8,4137.7,4.6063056]
[1761658628041,0.01,4137.8,4137.7,8.3753056]
[1761658628207,0.001,4138.0,4137.8,4.48544719]
[1761658628378,0.001,4138.0,4137.9,4.50955563]
[1761658628580,0.001,4138.1,4138.0,4.37733038]
[1761658628810,0.001,4138.3,4138.2,4.37721359]
[1761658628978,0.001,4138.5,4138.3,4.37715519]
[1761658629177,0.001,4138.5,4138.3,6.84023346]
[1761658629391,0.001,4138.5,4138.3,6.81606895]
[1761658629590,0.001,4138.5,4138.3,2.33091376]
[1761658629790,0.001,4138.5,4138.3,2.4406157]
[1761658630001,0.001,4138.5,4138.3,2.8461197]
[1761658630585,0.001,4138.5,4137.9,2.41663782]
[1761658630809,0.001,4138.5,4137.7,2.3565453]
[1761658631122,0.4454,4138.4,4137.7,3.9117453]
[1761658631317,0.4454,4138.4,4137.1,0.108]
[1761658631516,0.001,4138.4,4137.1,0.216]
[1761658631717,2.41739741,4138.4,4137.5,2.41690859]
[1761658632081,0.001,4138.4,4137.7,2.41675827]
[1761658632279,0.4444,4138.3,4137.1,0.108]
[1761658632485,2.41674751,4137.8,4137.0,1.07097713]
[1761658632788,0.2208,4138.0,4137.0,1.07097713]
[1761658632997,2.41674768,4137.8,4137.0,1.07097713]
[1761658633194,0.2208,4138.0,4137.1,1.57937152]
[1761658633480,2.41676497,4137.8,4137.1,1.82023486]
[1761658633686,2.41669567,4137.9,4137.1,1.82023486]
[1761658633903,0.2208,4138.0,4137.1,1.82023486]
[1761658634184,2.416696,4137.9,4137.1,1.82023486]
[1761658634384,2.41676638,4137.8,4137.1,1.82023486]
[1761658635015,2.41669977,4137.9,4137.1,1.82023486]
[1761658635513,0.6652,4138.0,4137.2,3.97224286]
[1761658635741,3.08183111,4138.0,4137.2,0.53084115]
[1761658636051,2.41673118,4137.9,4137.2,0.53084115]
[1761658636219,0.2208,4138.0,4137.2,0.53084115]
[1761658636220,2.41674752,4137.8,4137.2,0.53084115]
[1761658636402,2.41680231,4137.7,4137.2,0.53084115]
[1761658636607,2.41675356,4137.8,4137.2,0.53084115]
[1761658636803,0.4444,4137.9,4137.0,1.07097713]
[1761658637105,2.41708239,4137.3,4137.0,1.07097713]
[1761658637418,0.4444,4137.2,4136.1,0.01]
[1761658637846,2.41722934,4137.0,4136.1,0.01]
[1761658638006,0.4444,4137.2,4136.2,0.39829807]
[1761658638210,0.4444,4137.2,4136.3,3.97277698]
[1761658638446,0.4444,4137.2,4136.3,1.5552]
[1761658638652,0.4444,4137.2,4136.5,2.41748361]
[1761658639008,0.4444,4137.2,4136.4,2.41754965]
[1761658639211,0.4444,4137.2,4136.5,0.43710477]
[1761658639513,2.8614977,4137.2,4136.3,3.97280968]
[1761658639837,2.8614977,4137.2,4137.1,0.1208]
[1761658640041,0.4444,4137.2,4137.1,0.1208]
[1761658640236,2.86149368,4137.2,4137.1,0.1208]
[1761658640915,2.86149368,4137.2,4136.1,0.01]
[1761658640916,2.41749476,4136.6,4136.1,0.01]
[1761658641214,2.63847806,4136.2,4136.1,0.01]
[1761658641528,2.63847806,4136.2,4136.1,0.1308]
[1761658641727,3.08287806,4136.2,4136.1,0.1308]
[1761658641924,0.6652,4136.2,4136.1,0.1308]
[1761658642137,0.2208,4136.4,4136.1,0.1308]
[1761658642649,0.6652,4136.4,4136.1,0.1308]
[1761658643048,0.4444,4136.3,4136.1,0.1308]
[1761658643434,2.41767806,4136.2,4136.1,0.1308]
[1761658643836,2.86207806,4136.2,4136.1,0.1308]
[1761658644336,2.86207806,4136.2,4136.1,0.01]
[1761658644664,2.98287806,4136.2,4136.1,0.01]
[1761658645463,2.86207806,4136.2,4136.1,0.01]
[1761658645780,2.86207806,4136.2,4136.1,0.012]
[1761658646265,2.86207806,4136.2,4135.4,0.002]
[1761658646423,2.41797035,4135.7,4135.6,0.002]
[1761658646759,2.41797035,4135.7,4134.8,0.1208]
[1761658646760,2.41867214,4134.5,4133.3,0.128]
[1761658646919,2.41867214,4134.5,4133.4,2.41931165]
[1761658647120,2.41867214,4134.5,4133.5,2.41924831]
[1761658647121,2.86307214,4134.5,4133.5,2.41924831]
[1761658647322,2.86307214,4134.5,4133.3,0.002]
[1761658647956,2.86307214,4134.5,4133.3,2.421333]
[1761658648135,0.4444,4134.5,4133.4,3.97450289]
[1761658648342,0.4444,4134.5,4133.5,0.02419257]
[1761658648665,0.24600544,4137.2,4133.3,0.002]
[1761658648666,0.2208,4135.6,4134.5,2.41867214]
[1761658648963,0.2208,4135.6,4135.0,2.41836937]
[1761658649144,0.2208,4135.6,4135.1,2.41830539]
[1761658649346,0.2208,4135.6,4134.6,0.40238721]
[1761658649545,0.4444,4136.3,4135.3,2.41819576]
[1761658649757,0.4444,4136.3,4134.7,2.8240412]
[1761658649758,0.2208,4135.9,4135.4,2.65994985]
[1761658649923,0.4444,4136.3,4135.4,0.24181958]
[1761658650120,0.4444,4136.3,4134.9,1.5552]
[1761658650324,0.4444,4136.3,4135.0,2.41837968]
[1761658650640,0.01,4136.8,4135.0,2.41837968]
[1761658650641,0.01,4136.8,4136.2,0.126]
[1761658651297,0.01,4136.8,4135.4,1.5552]
[1761658651575,0.4544,4136.8,4135.8,3.97311189]
[1761658651773,0.4544,4136.8,4135.9,3.97301044]
[1761658651979,0.4544,4136.8,4136.2,2.41763463]
[1761658652139,0.01,4136.8,4136.2,2.41762413]
[1761658652340,0.4444,4136.7,4135.8,2.41786409]
[1761658652574,0.4444,4136.7,4135.9,0.48358929]
[1761658652762,0.4444,4136.7,4135.8,2.41790966]
[1761658652963,0.4444,4136.7,4135.6,1.5552]
[1761658653142,0.4444,4136.7,4135.8,2.4178638]
[1761658653344,0.4444,4136.7,4135.6,1.5552]
[1761658653644,0.4444,4136.7,4135.8,2.41791189]
[1761658653848,0.4444,4136.7,4135.9,0.63910487]
[1761658654047,0.4444,4136.7,4135.6,1.5552]
[1761658654273,2.86179662,4136.7,4135.8,2.4179105]
[1761658654477,0.4444,4136.7,4135.5,0.55285558]
[1761658654683,0.01,4136.8,4135.5,0.55285558]
[1761658654845,0.01,4136.8,4136.0,2.41778996]
[1761658655047,0.01,4136.8,4136.2,2.41763541]
[1761658655454,0.01,4136.8,4136.1,0.241779]
[1761658655775,0.4452,4136.7,4135.5,0.55285558]
[1761658656153,0.4452,4136.7,4134.6,0.40238721]
[1761658656346,0.2326,4135.6,4135.0,2.41837868]
[1761658656541,0.2326,4135.6,4134.9,1.5552]
[1761658656782,0.2326,4135.6,4135.5,0.1208]
[1761658657280,0.6778,4135.6,4135.5,0.1208]
[1761658657482,3.09582882,4135.6,4135.5,0.1208]
[1761658658066,3.09502882,4135.6,4135.5,0.1208]
[1761658659184,2.41739457,4136.7,4135.5,0.1208]
[1761658659185,0.2326,4135.9,4135.5,0.1208]
[1761658659361,0.2326,4135.9,4134.7,0.15098555]
[1761658659362,0.2326,4135.9,4135.1,2.41826423]
[1761658659561,0.4452,4136.3,4135.8,0.1208]
[1761658659768,0.4552,4136.8,4135.6,3.97322824]
[1761658659947,2.41738583,4136.7,4136.6,0.1208]
[1761658660344,2.41764544,4136.3,4135.5,1.5552]
[1761658660575,2.41764544,4136.3,4135.4,3.769]
[1761658660880,2.4175034,4136.5,4135.5,0.64290204]
[1761658660881,2.41768449,4136.2,4135.5,0.64290204]
[1761658661247,2.41768449,4136.2,4136.1,0.1208]
[1761658661482,0.4452,4136.4,4136.1,0.1208]
[1761658661902,0.4452,4136.4,4135.4,3.769]
[1761658661903,2.42733006,4136.8,4136.3,0.1208]
[1761658662188,0.4452,4136.7,4136.3,0.1208]
[1761658662345,2.41751881,4136.5,4135.6,2.41798134]
[1761658662550,2.41751881,4136.5,4135.7,1.01603236]
[1761658662880,2.86275306,4136.5,4136.4,0.1208]
[1761658668467,2.41755306,4136.5,4136.4,0.1208]
[1761658668677,2.86275306,4136.5,4136.4,0.1208]
[1761658671499,2.41761961,4136.3,4135.0,0.002]
[1761658671706,2.6509212,4135.1,4135.0,0.002]
[1761658671898,0.2326,4135.1,4135.0,0.002]
[1761658672197,2.65077588,4135.4,4135.0,0.002]
[1761658672398,2.4183212,4135.1,4135.0,0.002]
[1761658673712,2.4182726,4135.2,4135.0,0.002]
[1761658673915,2.4183212,4135.1,4135.0,0.002]
[1761658675134,2.8635212,4135.1,4135.0,0.002]
[1761658677735,2.4183212,4135.1,4135.0,0.002]
[1761658677906,2.8635212,4135.1,4135.0,0.002]
[1761658682715,2.8627212,4135.1,4135.0,0.002]
[1761658683131,2.9835212,4135.1,4135.0,0.002]
[1761658685058,2.9835212,4135.1,4134.1,0.012]
[1761658685059,0.405504,4134.2,4134.1,0.012]
[1761658685257,2.41931581,4133.4,4133.3,0.002]
[1761658685629,2.85851581,4133.4,4133.3,0.002]
[1761658688647,0.2198,4133.5,4133.3,0.002]
[1761658688852,2.41930185,4133.5,4133.3,0.002]
[1761658689024,0.2338,4133.7,4133.3,0.002]
[1761658689535,2.41918894,4133.7,4133.3,0.002]
[1761658689848,2.41919174,4133.7,4133.3,0.002]
[1761658690035,2.88683704,4133.6,4133.3,0.002]
[1761658690216,2.41931581,4133.4,4133.3,0.002]
[1761658690853,2.88691581,4133.4,4133.3,0.002]
[1761658691713,2.41931581,4133.4,4133.3,0.002]
[1761658692324,2.88691581,4133.4,4133.3,0.002]
[1761658692547,2.41943288,4133.2,4132.1,1e-08]
[1761658693051,2.41943288,4133.2,4132.3,2.41995176]
[1761658693249,2.41940077,4133.3,4132.5,2.41982718]
[1761658693459,0.4676,4133.8,4132.6,2.41976493]
[1761658693617,2.41937276,4133.4,4132.5,2.41983016]
[1761658693817,2.41943288,4133.2,4132.1,2.42007661]
[1761658694017,2.41943288,4133.2,4132.1,1e-08]
[1761658694223,2.41943288,4133.2,4132.3,2.41994637]
[1761658695048,2.41943288,4133.2,4132.7,0.1208]
[1761658695559,2.41938404,4133.3,4132.5,2.41982725]
[1761658695856,2.41919663,4133.7,4133.1,0.1308]
[1761658696156,2.41920095,4133.6,4133.1,0.1308]
[1761658696357,2.41920095,4133.6,4133.4,0.1208]
[1761658696656,2.41904309,4133.9,4133.4,0.1208]
[1761658696820,0.1208,4134.1,4133.4,0.1208]
[1761658697024,2.41925728,4133.5,4133.4,0.1208]
[1761658697242,0.4676,4134.0,4133.4,0.1208]
[1761658697447,2.41919198,4133.7,4133.4,0.1208]
[1761658697646,2.4191562,4133.7,4133.4,0.1208]
[1761658697845,2.4191562,4133.7,4133.1,0.01]
[1761658697846,0.6874,4134.5,4133.1,0.1388]
[1761658698158,2.53958915,4134.3,4133.6,0.1208]
[1761658698358,2.41914023,4133.7,4133.6,0.1208]
[1761658698660,2.41902549,4133.9,4133.6,0.1208]
[1761658698822,0.5884,4134.3,4133.6,0.1208]
[1761658699027,2.41914023,4133.7,4133.6,0.1208]
[1761658699939,2.41907758,4133.9,4133.6,0.1208]
[1761658700148,0.1208,4134.3,4133.6,0.1208]
[1761658700348,0.2198,4134.5,4134.0,0.1208]
[1761658700553,2.41890617,4134.1,4134.0,0.1208]
[1761658701131,2.41885778,4134.2,4134.0,0.1208]
[1761658701560,0.2198,4134.5,4134.0,0.1208]
[1761658701760,0.6874,4134.5,4134.0,0.1208]
[1761658702066,0.2198,4134.5,4134.0,0.1208]
[1761658702269,2.41859594,4134.7,4134.4,0.1208]
[1761658702563,2.41853952,4134.8,4134.4,0.1208]
[1761658702766,0.1218,4135.1,4133.6,0.002]
[1761658702767,0.001,4135.1,4133.6,0.002]
[1761658702931,0.001,4135.1,4135.0,0.1208]
[1761658703348,0.001,4135.1,4135.0,0.2496]
[1761658703885,0.001,4135.1,4135.0,0.1208]
[1761658704184,0.001,4135.1,4135.0,2.53917968]